[Event "*** SCC Grand Prix: Titled Tuesday Blitz"]
[Site "Chess.com"]
[Date "2020.06.23"]
[Round "1"]
[White "elohunter1999"]
[Black "Rskaak"]
[Result "1-0"]
[WhiteElo "2469"]
[BlackElo "1693"]
[TimeControl "180+1"]
[EndTime "10:05:05 PDT"]
[Termination "elohunter1999 won by resignation"]

1. e4 {[%clk 0:02:54.9]} 1... e6 {[%clk 0:02:59.7]} 2. d4 {[%clk 0:02:53.8]}
2... d5 {[%clk 0:03:00.6]} 3. Nc3 {[%clk 0:02:52]} 3... Nf6 {[%clk 0:02:59.8]}
4. e5 {[%clk 0:02:50.6]} 4... Nfd7 {[%clk 0:02:59.9]} 5. f4 {[%clk 0:02:51]}
5... c5 {[%clk 0:03:00.8]} 6. Nf3 {[%clk 0:02:50.8]} 6... Nc6 {[%clk 0:03:01.7]}
7. Be3 {[%clk 0:02:49.8]} 7... Qb6 {[%clk 0:02:55.3]} 8. Na4 {[%clk 0:02:46.5]}
8... Qa5+ {[%clk 0:02:52.3]} 9. c3 {[%clk 0:02:45.9]} 9... cxd4 {[%clk
0:02:50.5]} 10. b4 {[%clk 0:02:45.4]} 10... Qc7 {[%clk 0:02:46.5]} 11. Nxd4
{[%clk 0:02:43.8]} 11... Nb6 {[%clk 0:02:40.7]} 12. Nb5 {[%clk 0:02:37.4]} 12...
Qd8 {[%clk 0:02:37]} 13. Nxb6 {[%clk 0:02:37.1]} 13... axb6 {[%clk 0:02:36.1]}
14. Bd3 {[%clk 0:02:35.1]} 14... Bd7 {[%clk 0:02:32.4]} 15. O-O {[%clk
0:02:33.1]} 15... Be7 {[%clk 0:02:24.6]} 16. Qe2 {[%clk 0:02:00.3]} 16... Na7
{[%clk 0:02:17.5]} 17. Nd4 {[%clk 0:01:54]} 17... O-O {[%clk 0:02:13.1]} 18. Rf3
{[%clk 0:01:32.2]} 18... f5 {[%clk 0:02:10.6]} 19. Kh1 {[%clk 0:01:28.3]} 19...
Be8 {[%clk 0:02:04.6]} 20. Rh3 {[%clk 0:01:26.3]} 20... Qd7 {[%clk 0:01:53.1]}
21. g4 {[%clk 0:01:24.5]} 21... Bg6 {[%clk 0:01:43.2]} 22. gxf5 {[%clk 0:01:24]}
22... Bxf5 {[%clk 0:01:34.5]} 23. Nxf5 {[%clk 0:01:14.3]} 23... exf5 {[%clk
0:01:33.2]} 24. Qh5 {[%clk 0:01:13.9]} 24... h6 {[%clk 0:01:28.1]} 25. Rg1
{[%clk 0:01:14.4]} 25... Qe6 {[%clk 0:01:13.9]} 26. Rg6 {[%clk 0:01:09]} 26...
Qf7 {[%clk 0:01:05.6]} 27. Qxh6 {[%clk 0:01:07.9]} 1-0

[Event "*** SCC Grand Prix: Titled Tuesday Blitz"]
[Site "Chess.com"]
[Date "2020.06.23"]
[Round "1"]
[White "Vaathi_Coming"]
[Black "ZEN-22"]
[Result "1-0"]
[WhiteElo "2850"]
[BlackElo "2439"]
[TimeControl "180+1"]
[EndTime "10:05:10 PDT"]
[Termination "Vaathi_Coming won by resignation"]

1. g3 {[%clk 0:03:00.9]} 1... h5 {[%clk 0:02:21.4]} 2. Nf3 {[%clk 0:02:58.2]}
2... e6 {[%clk 0:02:19.5]} 3. Bg2 {[%clk 0:02:55.9]} 3... h4 {[%clk 0:02:16.2]}
4. Nxh4 {[%clk 0:02:55.6]} 4... Rxh4 {[%clk 0:02:16.8]} 5. gxh4 {[%clk
0:02:56.2]} 5... Qxh4 {[%clk 0:02:17.1]} 6. d4 {[%clk 0:02:54.7]} 6... c5 {[%clk
0:02:16.7]} 7. d5 {[%clk 0:02:47.1]} 7... Nf6 {[%clk 0:02:14.7]} 8. Nc3 {[%clk
0:02:41.1]} 8... a6 {[%clk 0:02:13.8]} 9. Qd3 {[%clk 0:02:37.9]} 9... e5 {[%clk
0:02:05.4]} 10. Qg3 {[%clk 0:02:34.3]} 10... Qh5 {[%clk 0:02:04.1]} 11. Bf3
{[%clk 0:02:22.1]} 11... Qf5 {[%clk 0:02:03]} 12. e4 {[%clk 0:02:19.9]} 12...
Qh7 {[%clk 0:02:00]} 13. Qxe5+ {[%clk 0:02:19.6]} 13... Kd8 {[%clk 0:01:59.9]}
14. Bg5 {[%clk 0:02:10.6]} 14... Qg6 {[%clk 0:01:48]} 15. Rg1 {[%clk 0:01:48.7]}
15... d6 {[%clk 0:01:38.6]} 16. Bxf6+ {[%clk 0:01:48.2]} 16... gxf6 {[%clk
0:01:38.8]} 17. Rxg6 {[%clk 0:01:45]} 17... fxe5 {[%clk 0:01:35.3]} 18. Rg8
{[%clk 0:01:44.4]} 18... Ke7 {[%clk 0:01:31.6]} 19. Bg4 {[%clk 0:01:30.2]} 19...
Bxg4 {[%clk 0:01:29.1]} 20. Rxg4 {[%clk 0:01:31.1]} 20... Nd7 {[%clk 0:01:29.2]}
21. f3 {[%clk 0:01:21.9]} 21... Bh6 {[%clk 0:01:28.5]} 22. Ne2 {[%clk 0:01:19]}
22... Rh8 {[%clk 0:01:25.7]} 23. Ng3 {[%clk 0:01:11.1]} 23... Nf6 {[%clk
0:01:23.3]} 24. Nf5+ {[%clk 0:01:11.1]} 24... Kd7 {[%clk 0:01:21.9]} 25. Rh4
{[%clk 0:01:09.9]} 25... Bg7 {[%clk 0:01:16.5]} 26. Rxh8 {[%clk 0:01:09.6]}
26... Bxh8 {[%clk 0:01:14.4]} 27. Kf2 {[%clk 0:01:05]} 27... Nh5 {[%clk
0:01:14.6]} 28. Rg1 {[%clk 0:01:02.1]} 28... Bf6 {[%clk 0:01:14.1]} 29. Rg8
{[%clk 0:00:59.5]} 29... Bh4+ {[%clk 0:01:12.3]} 30. Nxh4 {[%clk 0:00:58.9]} 1-0

[Event "*** SCC Grand Prix: Titled Tuesday Blitz"]
[Site "Chess.com"]
[Date "2020.06.23"]
[Round "1"]
[White "Grieve72"]
[Black "aNaartjieZA"]
[Result "0-1"]
[WhiteElo "2244"]
[BlackElo "2572"]
[TimeControl "180+1"]
[EndTime "10:05:10 PDT"]
[Termination "aNaartjieZA won by resignation"]

1. e4 {[%clk 0:02:59.3]} 1... e6 {[%clk 0:02:59.9]} 2. d4 {[%clk 0:02:59.2]}
2... d5 {[%clk 0:03:00.1]} 3. Nd2 {[%clk 0:02:59.7]} 3... Nf6 {[%clk 0:02:59.9]}
4. e5 {[%clk 0:02:59.5]} 4... Nfd7 {[%clk 0:03:00.2]} 5. Bd3 {[%clk 0:03:00]}
5... c5 {[%clk 0:03:00.8]} 6. c3 {[%clk 0:03:00.5]} 6... Nc6 {[%clk 0:03:01.3]}
7. Ne2 {[%clk 0:03:01]} 7... cxd4 {[%clk 0:03:01.4]} 8. cxd4 {[%clk 0:03:01.9]}
8... f6 {[%clk 0:03:01.9]} 9. exf6 {[%clk 0:03:02.8]} 9... Nxf6 {[%clk
0:03:02.5]} 10. Nf3 {[%clk 0:03:02.4]} 10... Bd6 {[%clk 0:03:03.1]} 11. O-O
{[%clk 0:03:01.7]} 11... O-O {[%clk 0:03:03.6]} 12. Bf4 {[%clk 0:03:00.7]} 12...
Bxf4 {[%clk 0:03:02.9]} 13. Nxf4 {[%clk 0:03:01.6]} 13... Ne4 {[%clk 0:03:03]}
14. Ne2 {[%clk 0:03:01.7]} 14... Rxf3 {[%clk 0:03:00.8]} 15. gxf3 {[%clk
0:03:01.7]} 15... Ng5 {[%clk 0:03:00.8]} 16. Kh1 {[%clk 0:02:13.4]} 16... e5
{[%clk 0:02:15.2]} 17. Qb3 {[%clk 0:02:12.6]} 17... Kh8 {[%clk 0:02:04.8]} 18.
f4 {[%clk 0:01:37.6]} 18... Nf3 {[%clk 0:01:48.7]} 19. Bxh7 {[%clk 0:01:02]}
19... e4 {[%clk 0:01:46.9]} 20. Ng1 {[%clk 0:00:46.1]} 20... Ncxd4 {[%clk
0:01:41.5]} 21. Qa3 {[%clk 0:00:27.1]} 21... Qh4 {[%clk 0:01:35.8]} 22. h3
{[%clk 0:00:25.6]} 22... Bxh3 {[%clk 0:01:31.4]} 0-1

[Event "*** SCC Grand Prix: Titled Tuesday Blitz"]
[Site "Chess.com"]
[Date "2020.06.23"]
[Round "1"]
[White "winniethepooh04"]
[Black "nikitakhoroshev"]
[Result "0-1"]
[WhiteElo "1199"]
[BlackElo "2469"]
[TimeControl "180+1"]
[EndTime "10:05:10 PDT"]
[Termination "nikitakhoroshev won by resignation"]

1. e4 {[%clk 0:02:59.9]} 1... e6 {[%clk 0:02:57.1]} 2. d4 {[%clk 0:02:58.3]}
2... d5 {[%clk 0:02:56.3]} 3. Nd2 {[%clk 0:02:58.3]} 3... a6 {[%clk 0:02:56.1]}
4. c3 {[%clk 0:02:53.7]} 4... c5 {[%clk 0:02:55.3]} 5. exd5 {[%clk 0:02:47.4]}
5... Qxd5 {[%clk 0:02:52.6]} 6. Ngf3 {[%clk 0:02:46.4]} 6... cxd4 {[%clk
0:02:37.9]} 7. Bc4 {[%clk 0:02:44.4]} 7... Qd8 {[%clk 0:02:36.4]} 8. O-O {[%clk
0:02:43.7]} 8... Nc6 {[%clk 0:02:33.4]} 9. a4 {[%clk 0:02:42.2]} 9... Nf6 {[%clk
0:02:32]} 10. Re1 {[%clk 0:02:40.7]} 10... dxc3 {[%clk 0:02:29.2]} 11. bxc3
{[%clk 0:02:37.7]} 11... Bc5 {[%clk 0:02:25.6]} 12. Nb3 {[%clk 0:02:24.3]} 12...
Qxd1 {[%clk 0:02:19.4]} 13. Rxd1 {[%clk 0:02:23.1]} 13... Be7 {[%clk 0:02:11.2]}
14. Nbd4 {[%clk 0:02:21.1]} 14... Bd7 {[%clk 0:02:07.5]} 15. Nxc6 {[%clk
0:02:18.5]} 15... Bxc6 {[%clk 0:02:08.4]} 16. Nd4 {[%clk 0:02:18.3]} 16... Bd5
{[%clk 0:02:07.6]} 17. Bxd5 {[%clk 0:02:10.2]} 17... Nxd5 {[%clk 0:02:08.5]} 18.
c4 {[%clk 0:02:10.5]} 18... Nc3 {[%clk 0:02:00.5]} 19. Rd3 {[%clk 0:02:09]}
19... Bf6 {[%clk 0:01:58]} 20. Be3 {[%clk 0:01:51.1]} 20... Bxd4 {[%clk
0:01:46.2]} 21. Bxd4 {[%clk 0:01:49.5]} 21... Ne2+ {[%clk 0:01:46.3]} 22. Kf1
{[%clk 0:01:47.9]} 22... Nxd4 {[%clk 0:01:47.2]} 23. Rxd4 {[%clk 0:01:47.5]}
23... Ke7 {[%clk 0:01:47.4]} 24. Rb1 {[%clk 0:01:45.6]} 24... Rab8 {[%clk
0:01:47.3]} 25. c5 {[%clk 0:01:42.3]} 25... Rhc8 {[%clk 0:01:46.5]} 26. Rd6
{[%clk 0:01:29.6]} 26... Rxc5 {[%clk 0:01:42.7]} 27. Rxa6 {[%clk 0:01:29]} 27...
bxa6 {[%clk 0:01:41.8]} 28. Rxb8 {[%clk 0:01:28.1]} 28... Rc4 {[%clk 0:01:41.9]}
29. Rb7+ {[%clk 0:01:26.4]} 29... Kf6 {[%clk 0:01:41.6]} 30. a5 {[%clk
0:01:13.4]} 30... Rc5 {[%clk 0:01:40.7]} 31. f4 {[%clk 0:01:13.1]} 31... h5
{[%clk 0:01:37.8]} 32. h3 {[%clk 0:01:12]} 32... Rxa5 {[%clk 0:01:30.9]} 33. g4
{[%clk 0:01:12.2]} 33... hxg4 {[%clk 0:01:30.7]} 34. hxg4 {[%clk 0:01:11.4]}
34... Ra4 {[%clk 0:01:31.1]} 35. g5+ {[%clk 0:01:05.7]} 35... Kg6 {[%clk
0:01:30.6]} 0-1

[Event "*** SCC Grand Prix: Titled Tuesday Blitz"]
[Site "Chess.com"]
[Date "2020.06.23"]
[Round "1"]
[White "hermionegrangermagic"]
[Black "BulletMercenary"]
[Result "1-0"]
[WhiteElo "2521"]
[BlackElo "2138"]
[TimeControl "180+1"]
[EndTime "10:05:11 PDT"]
[Termination "hermionegrangermagic won by resignation"]

1. e4 {[%clk 0:03:00.9]} 1... d6 {[%clk 0:02:56]} 2. d4 {[%clk 0:03:00.5]} 2...
g6 {[%clk 0:02:56.4]} 3. Nc3 {[%clk 0:02:59.9]} 3... Bg7 {[%clk 0:02:56.9]} 4.
h4 {[%clk 0:02:59.9]} 4... h5 {[%clk 0:02:52.6]} 5. Nh3 {[%clk 0:02:59.5]} 5...
c6 {[%clk 0:02:49.9]} 6. Bc4 {[%clk 0:02:54.9]} 6... b5 {[%clk 0:02:48.3]} 7.
Bb3 {[%clk 0:02:52.2]} 7... Nf6 {[%clk 0:02:34]} 8. Ng5 {[%clk 0:02:51.5]} 8...
O-O {[%clk 0:02:18.5]} 9. Qf3 {[%clk 0:02:35.8]} 9... b4 {[%clk 0:02:15.7]} 10.
Ne2 {[%clk 0:02:34.8]} 10... Bg4 {[%clk 0:02:15.3]} 11. Qd3 {[%clk 0:02:34.1]}
11... Bxe2 {[%clk 0:02:13.9]} 12. Qxe2 {[%clk 0:02:25.1]} 12... e5 {[%clk
0:02:13]} 13. Be3 {[%clk 0:02:23.8]} 13... Nh7 {[%clk 0:02:08.7]} 14. Rd1 {[%clk
0:02:09.6]} 14... exd4 {[%clk 0:02:05.8]} 15. Bxd4 {[%clk 0:02:03.5]} 15... Nxg5
{[%clk 0:02:03]} 16. hxg5 {[%clk 0:01:49.8]} 16... Qxg5 {[%clk 0:01:48.7]} 17.
O-O {[%clk 0:01:49.1]} 17... Bxd4 {[%clk 0:01:42.1]} 18. Rxd4 {[%clk 0:01:50]}
18... Qe5 {[%clk 0:01:42.1]} 19. Qe3 {[%clk 0:01:43.6]} 19... Nd7 {[%clk
0:01:21.3]} 20. f4 {[%clk 0:01:41.8]} 20... Qe7 {[%clk 0:01:21.4]} 21. f5 {[%clk
0:01:37.9]} 21... Ne5 {[%clk 0:01:12.5]} 22. f6 {[%clk 0:01:34.4]} 22... Ng4
{[%clk 0:00:17.1]} 23. fxe7 {[%clk 0:01:33.1]} 23... Nxe3 {[%clk 0:00:17.3]} 24.
exf8=Q+ {[%clk 0:01:33.2]} 24... Rxf8 {[%clk 0:00:18.2]} 1-0

[Event "*** SCC Grand Prix: Titled Tuesday Blitz"]
[Site "Chess.com"]
[Date "2020.06.23"]
[Round "1"]
[White "Iljushin_Alexey"]
[Black "SharapovEvgeny"]
[Result "1-0"]
[WhiteElo "2711"]
[BlackElo "2368"]
[TimeControl "180+1"]
[EndTime "10:05:12 PDT"]
[Termination "Iljushin_Alexey won by resignation"]

1. d4 {[%clk 0:02:59.3]} 1... d5 {[%clk 0:02:58.9]} 2. c4 {[%clk 0:02:59.1]}
2... c6 {[%clk 0:02:59]} 3. Nf3 {[%clk 0:02:59.2]} 3... Nf6 {[%clk 0:02:59]} 4.
Nc3 {[%clk 0:02:59.4]} 4... g6 {[%clk 0:02:58.8]} 5. cxd5 {[%clk 0:02:58.9]}
5... cxd5 {[%clk 0:02:57.8]} 6. Bf4 {[%clk 0:02:58.8]} 6... Nc6 {[%clk
0:02:56.8]} 7. e3 {[%clk 0:02:58.9]} 7... Bg4 {[%clk 0:02:55.2]} 8. Be2 {[%clk
0:02:58.4]} 8... Bg7 {[%clk 0:02:54.3]} 9. O-O {[%clk 0:02:57.8]} 9... O-O
{[%clk 0:02:53.2]} 10. Ne5 {[%clk 0:02:56.1]} 10... Bxe2 {[%clk 0:02:51.6]} 11.
Qxe2 {[%clk 0:02:56.1]} 11... Nxe5 {[%clk 0:02:51.5]} 12. Bxe5 {[%clk
0:02:55.9]} 12... Ne4 {[%clk 0:02:48.3]} 13. Nxe4 {[%clk 0:02:54]} 13... Bxe5
{[%clk 0:02:45.7]} 14. Nc5 {[%clk 0:02:50.4]} 14... Bd6 {[%clk 0:02:30.7]} 15.
Nd3 {[%clk 0:02:50.3]} 15... Qb6 {[%clk 0:02:28.3]} 16. Rfc1 {[%clk 0:02:44.1]}
16... Rfc8 {[%clk 0:02:26.5]} 17. g3 {[%clk 0:02:40.5]} 17... e6 {[%clk
0:02:25.2]} 18. h4 {[%clk 0:02:39.2]} 18... h5 {[%clk 0:02:24.1]} 19. Rc2 {[%clk
0:02:33.9]} 19... Rc4 {[%clk 0:02:18]} 20. b3 {[%clk 0:02:28.8]} 20... Rc6
{[%clk 0:02:06.9]} 21. Rxc6 {[%clk 0:02:28]} 21... bxc6 {[%clk 0:02:05.9]} 22.
Rc1 {[%clk 0:02:27.4]} 22... a5 {[%clk 0:02:02.6]} 23. Qc2 {[%clk 0:02:26.4]}
23... Ra6 {[%clk 0:01:59.7]} 24. Nc5 {[%clk 0:02:20.9]} 24... Bxc5 {[%clk
0:01:58.9]} 25. Qxc5 {[%clk 0:02:20.3]} 25... Qxc5 {[%clk 0:01:58.5]} 26. Rxc5
{[%clk 0:02:20.3]} 26... Kf8 {[%clk 0:01:54.4]} 27. Kf1 {[%clk 0:02:19.4]} 27...
Ke7 {[%clk 0:01:52.7]} 28. Ke2 {[%clk 0:02:19.1]} 28... Kd6 {[%clk 0:01:52.7]}
29. Kd3 {[%clk 0:02:18.9]} 29... Kc7 {[%clk 0:01:51.6]} 30. Kc2 {[%clk
0:02:17.7]} 30... Kb6 {[%clk 0:01:51.1]} 31. Kb2 {[%clk 0:02:17.9]} 31... Ra8
{[%clk 0:01:48.3]} 32. Ka3 {[%clk 0:02:17.8]} 32... f6 {[%clk 0:01:46.1]} 33.
Ka4 {[%clk 0:02:11.9]} 33... e5 {[%clk 0:01:45.2]} 34. a3 {[%clk 0:02:11]} 34...
exd4 {[%clk 0:01:44]} 35. exd4 {[%clk 0:02:10.8]} 35... Re8 {[%clk 0:01:38.4]}
36. Rc2 {[%clk 0:02:10.2]} 36... Re4 {[%clk 0:01:37.4]} 37. Rd2 {[%clk
0:02:10.2]} 37... c5 {[%clk 0:01:37]} 38. f3 {[%clk 0:02:09.7]} 38... Rxd4+
{[%clk 0:01:35.4]} 39. Rxd4 {[%clk 0:02:09.6]} 39... cxd4 {[%clk 0:01:35.2]} 40.
b4 {[%clk 0:02:06.7]} 40... d3 {[%clk 0:01:31.1]} 41. bxa5+ {[%clk 0:02:03.2]}
41... Ka6 {[%clk 0:01:30.3]} 42. Kb3 {[%clk 0:02:03.4]} 42... d4 {[%clk
0:01:30]} 43. Kb2 {[%clk 0:02:03.3]} 43... Kxa5 {[%clk 0:01:29.7]} 44. Kc1
{[%clk 0:02:03.8]} 44... Ka4 {[%clk 0:01:20.7]} 45. Kd2 {[%clk 0:02:02.7]} 45...
Kxa3 {[%clk 0:01:20.1]} 46. Kxd3 {[%clk 0:02:03.1]} 46... Kb4 {[%clk 0:01:19.9]}
47. Kxd4 {[%clk 0:02:02.9]} 47... Kb3 {[%clk 0:01:19.6]} 48. Kd5 {[%clk
0:02:01.7]} 48... Kc3 {[%clk 0:01:19.6]} 49. Ke6 {[%clk 0:02:01.5]} 49... Kd3
{[%clk 0:01:19.5]} 50. Kxf6 {[%clk 0:02:01.1]} 50... Ke3 {[%clk 0:01:19.6]} 51.
Kxg6 {[%clk 0:02:00.1]} 51... Kxf3 {[%clk 0:01:19.5]} 52. Kxh5 {[%clk
0:01:59.6]} 1-0

[Event "*** SCC Grand Prix: Titled Tuesday Blitz"]
[Site "Chess.com"]
[Date "2020.06.23"]
[Round "1"]
[White "Grischuk"]
[Black "Superfelix"]
[Result "1-0"]
[WhiteElo "3106"]
[BlackElo "2467"]
[TimeControl "180+1"]
[EndTime "10:05:14 PDT"]
[Termination "Grischuk won by resignation"]

1. e4 {[%clk 0:03:00.9]} 1... c6 {[%clk 0:02:58.6]} 2. d4 {[%clk 0:03:00.7]}
2... g6 {[%clk 0:02:58.5]} 3. Nf3 {[%clk 0:02:55.3]} 3... d5 {[%clk 0:02:58.5]}
4. e5 {[%clk 0:02:54.7]} 4... h5 {[%clk 0:02:57.3]} 5. h3 {[%clk 0:02:47.2]}
5... Nh6 {[%clk 0:02:56.6]} 6. c3 {[%clk 0:02:41.8]} 6... Bf5 {[%clk 0:02:53.2]}
7. Be2 {[%clk 0:02:39]} 7... Bg7 {[%clk 0:02:48]} 8. O-O {[%clk 0:02:34.9]} 8...
Nd7 {[%clk 0:02:44.4]} 9. Bf4 {[%clk 0:02:32.1]} 9... Nf8 {[%clk 0:02:39]} 10.
a4 {[%clk 0:02:12.5]} 10... Bxb1 {[%clk 0:02:35.5]} 11. Qxb1 {[%clk 0:02:08]}
11... Ne6 {[%clk 0:02:34.7]} 12. Bd2 {[%clk 0:02:08.2]} 12... a5 {[%clk
0:02:28]} 13. Bd3 {[%clk 0:02:06]} 13... Qd7 {[%clk 0:02:10.3]} 14. Re1 {[%clk
0:02:03]} 14... Rg8 {[%clk 0:01:45.3]} 15. Qc1 {[%clk 0:01:38.7]} 15... Rh8
{[%clk 0:01:43.9]} 16. Qc2 {[%clk 0:01:37.3]} 16... Bf8 {[%clk 0:01:24.9]} 17.
b4 {[%clk 0:01:34.3]} 17... Ng7 {[%clk 0:01:16.8]} 18. bxa5 {[%clk 0:01:28.9]}
18... Nhf5 {[%clk 0:01:15.1]} 19. Rab1 {[%clk 0:01:16.1]} 19... Rxa5 {[%clk
0:01:10.5]} 20. c4 {[%clk 0:01:16.3]} 20... Ra7 {[%clk 0:00:57.3]} 21. cxd5
{[%clk 0:01:16.3]} 21... Qxd5 {[%clk 0:00:55.6]} 22. Be4 {[%clk 0:01:16.3]}
22... Qd7 {[%clk 0:00:53.6]} 23. Rxb7 {[%clk 0:01:14.9]} 23... Rxb7 {[%clk
0:00:44]} 24. Bxc6 {[%clk 0:01:14.7]} 1-0

[Event "*** SCC Grand Prix: Titled Tuesday Blitz"]
[Site "Chess.com"]
[Date "2020.06.23"]
[Round "1"]
[White "IMHansNiemann"]
[Black "Diego_FloresQ"]
[Result "1-0"]
[WhiteElo "2977"]
[BlackElo "2459"]
[TimeControl "180+1"]
[EndTime "10:05:14 PDT"]
[Termination "IMHansNiemann won by resignation"]

1. d4 {[%clk 0:03:00.3]} 1... Nf6 {[%clk 0:02:54.3]} 2. c4 {[%clk 0:02:58.5]}
2... c5 {[%clk 0:02:47.9]} 3. d5 {[%clk 0:02:57.9]} 3... e6 {[%clk 0:02:41.5]}
4. Nc3 {[%clk 0:02:50.5]} 4... exd5 {[%clk 0:02:38.3]} 5. cxd5 {[%clk
0:02:51.4]} 5... d6 {[%clk 0:02:37.2]} 6. Nf3 {[%clk 0:02:44.5]} 6... g6 {[%clk
0:02:29.9]} 7. Bf4 {[%clk 0:02:40.7]} 7... a6 {[%clk 0:02:28.2]} 8. a4 {[%clk
0:02:39.3]} 8... Bg7 {[%clk 0:02:26.9]} 9. h3 {[%clk 0:02:38]} 9... O-O {[%clk
0:02:25.5]} 10. e3 {[%clk 0:02:37.3]} 10... Ne8 {[%clk 0:02:21.2]} 11. Be2
{[%clk 0:02:36.6]} 11... Nd7 {[%clk 0:02:16.4]} 12. O-O {[%clk 0:02:28.4]} 12...
Qe7 {[%clk 0:02:16.2]} 13. Nd2 {[%clk 0:02:25.4]} 13... Ne5 {[%clk 0:02:15.8]}
14. Bg3 {[%clk 0:02:22.8]} 14... f5 {[%clk 0:02:15.6]} 15. Qc2 {[%clk
0:02:14.7]} 15... Rb8 {[%clk 0:02:10.7]} 16. Rae1 {[%clk 0:02:03]} 16... Nf6
{[%clk 0:01:48.8]} 17. a5 {[%clk 0:01:56.9]} 17... b5 {[%clk 0:01:44.8]} 18.
axb6 {[%clk 0:01:55.7]} 18... Rxb6 {[%clk 0:01:42.7]} 19. Bxe5 {[%clk 0:01:46]}
19... dxe5 {[%clk 0:01:41]} 20. Nc4 {[%clk 0:01:45.1]} 20... Rb4 {[%clk
0:01:39.1]} 21. Rd1 {[%clk 0:01:41.2]} 21... Kh8 {[%clk 0:01:16]} 22. Na5 {[%clk
0:01:28.5]} 22... Bd7 {[%clk 0:01:02.4]} 23. Ra1 {[%clk 0:01:14.3]} 23... Bb5
{[%clk 0:00:43.8]} 24. Nxb5 {[%clk 0:01:12.6]} 24... axb5 {[%clk 0:00:41.5]} 25.
Nc6 {[%clk 0:01:11.2]} 25... Qd6 {[%clk 0:00:42.4]} 26. Nxb4 {[%clk 0:01:10.9]}
26... cxb4 {[%clk 0:00:43.3]} 27. Qc6 {[%clk 0:01:10.8]} 27... Nxd5 {[%clk
0:00:44.2]} 28. Qxd6 {[%clk 0:01:10.3]} 1-0

[Event "*** SCC Grand Prix: Titled Tuesday Blitz"]
[Site "Chess.com"]
[Date "2020.06.23"]
[Round "1"]
[White "dpopadic"]
[Black "Shubinkirill2003"]
[Result "0-1"]
[WhiteElo "2312"]
[BlackElo "2634"]
[TimeControl "180+1"]
[EndTime "10:05:16 PDT"]
[Termination "Shubinkirill2003 won by resignation"]

1. e4 {[%clk 0:03:00.9]} 1... e6 {[%clk 0:02:59.2]} 2. d4 {[%clk 0:03:00.3]}
2... d5 {[%clk 0:02:59.2]} 3. e5 {[%clk 0:03:00.4]} 3... c5 {[%clk 0:02:58.9]}
4. Qg4 {[%clk 0:02:59.7]} 4... Qa5+ {[%clk 0:02:56.9]} 5. Bd2 {[%clk 0:02:57.5]}
5... Qb6 {[%clk 0:02:56.6]} 6. b3 {[%clk 0:02:56.6]} 6... cxd4 {[%clk
0:02:53.1]} 7. Nf3 {[%clk 0:02:56.5]} 7... Nc6 {[%clk 0:02:52.8]} 8. Bd3 {[%clk
0:02:55.6]} 8... Nge7 {[%clk 0:02:46.3]} 9. O-O {[%clk 0:02:52.8]} 9... Bd7
{[%clk 0:02:43]} 10. a4 {[%clk 0:02:42.1]} 10... a5 {[%clk 0:02:38.7]} 11. Na3
{[%clk 0:02:39.3]} 11... Ng6 {[%clk 0:02:36.5]} 12. Rfe1 {[%clk 0:02:28.5]}
12... Nce7 {[%clk 0:02:11.6]} 13. Nb5 {[%clk 0:02:19.2]} 13... Bxb5 {[%clk
0:02:06.2]} 14. Bxb5+ {[%clk 0:02:18.2]} 14... Nc6 {[%clk 0:02:05.9]} 15. Nxd4
{[%clk 0:01:56.8]} 15... h5 {[%clk 0:02:00.9]} 16. Qe2 {[%clk 0:01:02.5]} 16...
Qxd4 {[%clk 0:01:57.8]} 17. Rad1 {[%clk 0:01:02.5]} 17... Qb6 {[%clk 0:01:51.9]}
18. c4 {[%clk 0:01:01.1]} 18... dxc4 {[%clk 0:01:48]} 19. bxc4 {[%clk
0:01:00.7]} 19... Bc5 {[%clk 0:01:46.1]} 20. Bc3 {[%clk 0:00:51.3]} 20... O-O
{[%clk 0:01:41.5]} 21. Rf1 {[%clk 0:00:50.9]} 21... Rad8 {[%clk 0:01:31.2]} 22.
Qxh5 {[%clk 0:00:48.7]} 22... Rxd1 {[%clk 0:01:30.5]} 23. Qxd1 {[%clk
0:00:48.4]} 23... Rd8 {[%clk 0:01:28.9]} 24. Qe2 {[%clk 0:00:48.5]} 24... Nd4
{[%clk 0:01:28.5]} 25. Qh5 {[%clk 0:00:42.2]} 25... Nf4 {[%clk 0:01:22.3]} 0-1

[Event "*** SCC Grand Prix: Titled Tuesday Blitz"]
[Site "Chess.com"]
[Date "2020.06.23"]
[Round "1"]
[White "ljuks68"]
[Black "A-Fier"]
[Result "0-1"]
[WhiteElo "2389"]
[BlackElo "2751"]
[TimeControl "180+1"]
[EndTime "10:05:17 PDT"]
[Termination "A-Fier won by resignation"]

1. e4 {[%clk 0:02:59.4]} 1... c5 {[%clk 0:02:59.9]} 2. Nf3 {[%clk 0:02:58.8]}
2... e6 {[%clk 0:03:00.3]} 3. d4 {[%clk 0:02:58.8]} 3... cxd4 {[%clk 0:03:01.2]}
4. Nxd4 {[%clk 0:02:58.9]} 4... Nc6 {[%clk 0:03:02.1]} 5. Nc3 {[%clk 0:02:56.7]}
5... Qc7 {[%clk 0:03:02.7]} 6. Be3 {[%clk 0:02:53.7]} 6... a6 {[%clk 0:03:02.8]}
7. Qd2 {[%clk 0:02:53]} 7... Nf6 {[%clk 0:03:02.4]} 8. f3 {[%clk 0:02:53.1]}
8... Be7 {[%clk 0:03:02.7]} 9. O-O-O {[%clk 0:02:52.6]} 9... O-O {[%clk
0:03:03.2]} 10. g4 {[%clk 0:02:52.7]} 10... b5 {[%clk 0:03:03.3]} 11. g5 {[%clk
0:02:51.9]} 11... Nh5 {[%clk 0:03:03.3]} 12. Nce2 {[%clk 0:02:51.8]} 12... Rd8
{[%clk 0:03:02.3]} 13. Ng3 {[%clk 0:02:36.9]} 13... Nxd4 {[%clk 0:03:02.1]} 14.
Qxd4 {[%clk 0:02:15.4]} 14... Nf4 {[%clk 0:03:01.5]} 15. h4 {[%clk 0:02:12.3]}
15... d5 {[%clk 0:02:59.1]} 16. Ne2 {[%clk 0:01:57.5]} 16... Nxe2+ {[%clk
0:02:48]} 17. Bxe2 {[%clk 0:01:56.7]} 17... dxe4 {[%clk 0:02:47.4]} 18. Qb6
{[%clk 0:01:55.7]} 18... Qxb6 {[%clk 0:02:45.9]} 19. Bxb6 {[%clk 0:01:55.5]}
19... Rxd1+ {[%clk 0:02:41.8]} 20. Rxd1 {[%clk 0:01:55.2]} 20... Rb8 {[%clk
0:02:17.2]} 21. Ba5 {[%clk 0:01:00]} 21... Bb7 {[%clk 0:02:11.8]} 22. fxe4
{[%clk 0:00:46.1]} 22... Bxe4 {[%clk 0:02:10.2]} 23. Rd7 {[%clk 0:00:45]} 23...
Bc5 {[%clk 0:02:08]} 24. Bd2 {[%clk 0:00:32.6]} 24... Rc8 {[%clk 0:02:05.7]} 25.
c3 {[%clk 0:00:21.4]} 25... Bc6 {[%clk 0:02:04]} 26. Rd3 {[%clk 0:00:20.3]}
26... Bd5 {[%clk 0:02:04.6]} 27. b3 {[%clk 0:00:18]} 27... f5 {[%clk 0:02:02.6]}
28. gxf6 {[%clk 0:00:13.4]} 28... gxf6 {[%clk 0:02:03.5]} 29. Bh6 {[%clk
0:00:13.4]} 29... Bf2 {[%clk 0:01:57.3]} 30. Rf3 {[%clk 0:00:09.8]} 30... Bxf3
{[%clk 0:01:56.7]} 0-1